bitfinex/quotes_BTCUSD_20250604
["timestamp","ask_amount","ask_price","bid_price","bid_amount"]
[1749069263139,0.98698791,104610.0,104600.0,0.3587307]
[1749069263703,0.98698791,104610.0,104600.0,0.454585]
[1749069263941,0.98698791,104610.0,104600.0,0.46912585]
[1749069265656,0.98698791,104610.0,104600.0,0.45539515]
[1749069267081,0.98698791,104610.0,104600.0,0.66003515]
[1749069267772,0.98698791,104610.0,104600.0,0.67322255]
[1749069270467,0.98698791,104610.0,104600.0,0.87942255]
[1749069271111,0.98698791,104610.0,104600.0,0.86623515]
[1749069271343,1.76555182,104610.0,104600.0,0.24972]
[1749069271574,1.78895182,104610.0,104600.0,0.4108]
[1749069271813,1.78895182,104610.0,104600.0,0.24972]
[1749069272029,1.78895182,104610.0,104600.0,0.4108]
[1749069272248,1.82718031,104610.0,104600.0,0.4108]
[1749069272882,1.81762182,104610.0,104600.0,0.4108]
[1749069274350,1.82718031,104610.0,104600.0,0.4108]
[1749069274765,1.81762182,104610.0,104600.0,0.4108]
[1749069275658,0.98698791,104610.0,104600.0,0.4108]
[1749069276293,0.232724,104610.0,104600.0,0.4571]
[1749069276765,0.98698791,104610.0,104600.0,0.4571]
[1749069278748,0.98698791,104610.0,104600.0,0.24972]
[1749069278994,1.78865182,104610.0,104600.0,0.24972]
[1749069279205,1.7982104,104610.0,104600.0,0.41076]
[1749069279436,1.78865182,104610.0,104600.0,0.41076]
[1749069279662,1.7982104,104610.0,104600.0,0.41076]
[1749069279884,1.78865182,104610.0,104600.0,0.41076]
[1749069282250,1.79821049,104610.0,104600.0,0.41076]
[1749069282477,1.78865182,104610.0,104600.0,0.41076]
[1749069282681,1.81732082,104610.0,104600.0,0.41076]
[1749069283695,1.82687931,104610.0,104600.0,0.41076]
[1749069283929,1.82687931,104610.0,104600.0,0.41072]
[1749069284173,1.81732082,104610.0,104600.0,0.41072]
[1749069286069,1.82687931,104610.0,104600.0,0.41072]
[1749069286511,1.82687931,104610.0,104600.0,0.4106]
[1749069287091,1.83643789,104610.0,104600.0,0.4106]
[1749069287285,1.83399789,104610.0,104600.0,0.4106]
[1749069287688,1.81488082,104610.0,104600.0,0.4106]
[1749069288548,1.81488082,104610.0,104600.0,0.2062]
[1749069288776,1.82443931,104610.0,104600.0,0.2062]
[1749069289004,1.82443931,104610.0,104600.0,0.41056]
[1749069289917,1.81492897,104610.0,104600.0,0.41056]
[1749069290144,1.82448746,104610.0,104570.0,0.13678263]
[1749069290376,0.0247,104590.0,104580.0,0.4106]
[1749069291241,0.0247,104590.0,104580.0,0.24964]
[1749069291469,0.05127875,104600.0,104580.0,0.4106]
[1749069291705,0.39509806,104610.0,104580.0,0.4569]
[1749069291940,0.75426391,104600.0,104580.0,0.4599]
[1749069292204,0.75426391,104590.0,104580.0,0.4599]
[1749069292421,0.75426391,104590.0,104580.0,0.4619]
[1749069292845,0.75426391,104590.0,104580.0,0.4599]
[1749069293071,0.75426391,104590.0,104580.0,0.4589]
[1749069293312,0.75426391,104590.0,104580.0,0.4619]
[1749069293562,0.75426391,104590.0,104580.0,0.4589]
[1749069294010,0.75426391,104590.0,104580.0,0.4619]
[1749069294449,0.75426391,104590.0,104580.0,0.4599]
[1749069294658,0.75426391,104590.0,104580.0,0.4619]
[1749069296310,0.35385545,104610.0,104590.0,0.0489]
[1749069296503,0.75426391,104600.0,104590.0,0.0489]
[1749069296704,0.35385545,104610.0,104590.0,0.20982]
[1749069296912,0.75426391,104600.0,104590.0,0.20982]
[1749069297530,0.75426391,104600.0,104590.0,0.21082]
[1749069297726,0.75426391,104600.0,104590.0,0.20982]
[1749069297934,0.75426391,104600.0,104590.0,0.21082]
[1749069299866,0.75426391,104600.0,104590.0,0.25422]
[1749069300455,0.75426391,104600.0,104590.0,0.0444]
[1749069300676,0.75426391,104600.0,104590.0,0.20532]
[1749069300902,0.78293591,104600.0,104590.0,0.20532]
[1749069301530,0.78293591,104600.0,104590.0,0.001]
[1749069301753,0.80663591,104600.0,104590.0,0.20532]
[1749069302616,0.80663591,104600.0,104590.0,0.001]
[1749069302835,0.84059531,104600.0,104590.0,0.20528]
[1749069303047,0.83103591,104600.0,104590.0,0.20528]
[1749069303262,0.84059531,104600.0,104590.0,0.0444]
[1749069303491,0.84059531,104600.0,104590.0,0.20528]
[1749069303492,0.83103591,104600.0,104590.0,0.20528]
[1749069304385,0.8405954,104600.0,104590.0,0.20528]
[1749069304647,0.83103591,104600.0,104590.0,0.20528]
[1749069304871,0.84059531,104600.0,104590.0,0.20528]
[1749069305702,0.83103591,104600.0,104590.0,0.20528]
[1749069305916,0.84059531,104600.0,104590.0,0.20528]
[1749069306587,0.83103591,104600.0,104590.0,0.20528]
[1749069308128,0.83103591,104600.0,104590.0,0.41152]
[1749069309145,0.8405954,104600.0,104590.0,0.41152]
[1749069309360,1.06047947,104600.0,104590.0,0.20724]
[1749069309557,1.05092052,104600.0,104590.0,0.41148]
[1749069309814,1.06001202,104600.0,104590.0,0.41148]
[1749069310266,0.85924667,104600.0,104590.0,0.41048]
[1749069310708,0.86980653,104600.0,104590.0,0.41048]
[1749069310951,0.11554262,104600.0,104590.0,0.41048]
[1749069311162,0.81214667,104600.0,104590.0,0.41048]
[1749069311387,0.84450662,104600.0,104590.0,0.41048]
[1749069311609,0.87726684,104600.0,104590.0,0.41048]
[1749069311839,0.8772637,104600.0,104590.0,0.41048]
[1749069312057,0.8772637,104600.0,104590.0,0.24964]
[1749069312058,1.89946723,104600.0,104590.0,0.24964]
[1749069312282,1.14520332,104600.0,104590.0,0.41048]
[1749069312559,1.14520332,104600.0,104590.0,0.24964]
[1749069312560,1.14520263,104600.0,104590.0,0.24964]
[1749069312775,1.14520263,104600.0,104590.0,0.41048]
[1749069314182,1.14520263,104600.0,104590.0,0.20624]
[1749069314393,1.14520263,104600.0,104590.0,0.41048]
[1749069314617,1.89946654,104600.0,104590.0,0.41048]
[1749069314858,1.89946654,104600.0,104590.0,0.24964]
[1749069315079,1.89946654,104600.0,104590.0,0.41048]
[1749069315538,2.23946654,104600.0,104590.0,0.41048]
[1749069315993,2.23946654,104600.0,104590.0,0.20624]
[1749069316222,2.23946654,104600.0,104590.0,0.41036]
[1749069316691,0.26464677,104570.0,104550.0,0.0448]
[1749069316917,0.27421031,104570.0,104560.0,0.41032]
[1749069317143,0.81808893,104570.0,104560.0,0.41032]
[1749069317368,0.84677193,104570.0,104560.0,0.41032]
[1749069317643,0.84677147,104570.0,104560.0,0.41032]
[1749069318047,0.84681959,104570.0,104560.0,0.41032]
[1749069318500,0.07343112,104570.0,104560.0,0.41032]
[1749069318713,0.78299503,104570.0,104560.0,0.41032]
[1749069319594,0.78399503,104570.0,104560.0,0.41032]
[1749069319807,0.79355727,104570.0,104560.0,0.41032]
[1749069320541,0.78399503,104570.0,104560.0,0.41032]
[1749069321046,0.79355727,104570.0,104560.0,0.41032]
[1749069321590,0.79355727,104570.0,104560.0,0.24952]
[1749069321881,0.79355727,104570.0,104560.0,0.41032]
[1749069322160,0.78399503,104570.0,104560.0,0.41032]
[1749069323286,0.79355727,104570.0,104560.0,0.41032]
[1749069323513,0.78399503,104570.0,104560.0,0.41032]
[1749069324206,0.79355727,104570.0,104560.0,0.41032]
[1749069324651,0.78399503,104570.0,104560.0,0.41032]
[1749069325739,0.79355727,104570.0,104560.0,0.41032]
[1749069326412,0.78399503,104570.0,104560.0,0.41032]
[1749069327861,0.79355727,104570.0,104560.0,0.41032]
[1749069328442,0.78399503,104570.0,104560.0,0.41032]
[1749069328880,0.06169345,104570.0,104560.0,0.41032]
[1749069329114,0.83875736,104570.0,104560.0,0.41032]
[1749069329328,1.88969797,104570.0,104560.0,0.20624]
[1749069329555,1.88969797,104570.0,104560.0,0.41036]
[1749069330451,1.13543406,104570.0,104560.0,0.41036]
[1749069330668,0.38117015,104570.0,104560.0,0.41036]
[1749069330889,1.13443406,104570.0,104560.0,0.41036]
[1749069331111,1.13443406,104570.0,104560.0,0.41032]
[1749069331315,1.13443406,104570.0,104560.0,0.20624]
[1749069331557,0.38017015,104570.0,104560.0,0.41032]
[1749069331790,1.13443406,104570.0,104560.0,0.41032]
[1749069332197,1.13943406,104570.0,104560.0,0.41032]
[1749069333055,1.1514172,104570.0,104560.0,0.41032]
[1749069335438,1.90568111,104570.0,104560.0,0.41032]
[1749069336307,1.90568111,104570.0,104560.0,0.24956]
[1749069336512,1.90568111,104570.0,104560.0,0.41032]
[1749069336744,0.96972073,104570.0,104560.0,0.41032]
[1749069336980,0.91823247,104570.0,104560.0,0.41032]
[1749069337187,0.78799503,104570.0,104560.0,0.45752]
[1749069337872,0.75931203,104570.0,104560.0,0.45752]
[1749069338547,0.75731203,104570.0,104560.0,0.45752]
[1749069338768,0.75431203,104570.0,104560.0,0.45752]
[1749069338996,0.75531203,104570.0,104560.0,0.45752]
[1749069343453,0.00104812,104570.0,104560.0,0.45752]
[1749069343667,0.75531203,104570.0,104560.0,0.45752]
[1749069344104,1.76426067,104570.0,104560.0,0.20624]
[1749069344354,1.76426067,104570.0,104560.0,0.41032]
[1749069344355,1.44585106,104570.0,104560.0,0.41032]
[1749069344563,1.21936933,104570.0,104560.0,0.41032]
[1749069344768,1.41062877,104570.0,104560.0,0.41032]
[1749069348975,1.43931277,104570.0,104560.0,0.41032]
[1749069350584,1.24805333,104570.0,104560.0,0.41032]
[1749069350817,1.44887574,104570.0,104560.0,0.41032]
[1749069351688,0.68504886,104570.0,104560.0,0.41032]
[1749069351903,1.44887574,104570.0,104560.0,0.41032]
[1749069353266,1.44771574,104570.0,104560.0,0.41032]
[1749069353938,1.44771574,104570.0,104560.0,0.4102]
[1749069354659,2.19252902,104570.0,104560.0,0.4102]
[1749069354872,2.19252902,104570.0,104560.0,0.24948]
[1749069355084,2.19252902,104570.0,104560.0,0.4102]
[1749069356397,2.1925296,104570.0,104560.0,0.4102]
[1749069356622,2.1945296,104570.0,104560.0,0.4102]
[1749069357071,2.1965296,104570.0,104560.0,0.4102]
[1749069357736,1.44226569,104570.0,104560.0,0.4102]
[1749069358180,0.68800178,104570.0,104560.0,0.4102]
[1749069358410,1.44226569,104570.0,104560.0,0.4102]
[1749069360843,0.68799993,104570.0,104560.0,0.4102]
[1749069361079,1.44226384,104570.0,104560.0,0.4102]
[1749069366078,2.19652775,104570.0,104560.0,0.24948]
[1749069366549,2.19652775,104570.0,104560.0,0.4102]
[1749069367989,2.18696497,104570.0,104560.0,0.4102]
[1749069373112,1.45182617,104570.0,104560.0,0.4102]
[1749069375374,1.45183985,104570.0,104560.0,0.4102]
[1749069375605,1.25101744,104570.0,104560.0,0.4102]
[1749069375825,1.26058032,104570.0,104560.0,0.4102]
[1749069376036,1.45183976,104570.0,104560.0,0.4102]
[1749069378178,1.26058032,104570.0,104560.0,0.4102]
[1749069379607,1.45183976,104570.0,104560.0,0.4102]
[1749069380872,0.79603803,104570.0,104560.0,0.45442]
[1749069381092,0.81516259,104570.0,104560.0,0.45442]
[1749069381293,0.79603803,104570.0,104560.0,0.45442]
[1749069381502,0.75826391,104570.0,104560.0,0.45442]
[1749069382414,0.75426391,104570.0,104560.0,0.45442]
[1749069383265,0.001,104570.0,104560.0,0.45442]
[1749069383486,0.75526391,104570.0,104560.0,0.45442]
[1749069385633,0.75526391,104570.0,104560.0,0.46646361]
[1749069386054,0.75426391,104570.0,104560.0,0.46646361]
[1749069386255,0.75426391,104570.0,104560.0,0.46846361]
[1749069386543,0.75426391,104570.0,104560.0,0.82001791]
[1749069386745,0.028679,104590.0,104560.0,0.82001791]
[1749069386945,0.75426391,104570.0,104560.0,0.82016233]
[1749069387145,0.75426391,104570.0,104560.0,0.86436233]
[1749069388141,0.75426391,104570.0,104560.0,0.67166318]
[1749069388380,0.75426391,104570.0,104560.0,0.67266318]
[1749069388593,0.75426391,104570.0,104560.0,0.67066318]
[1749069388803,0.75426391,104570.0,104560.0,0.67166318]
[1749069389021,0.75426391,104570.0,104560.0,0.67266318]
[1749069389253,0.75426391,104570.0,104560.0,0.67166318]
[1749069389621,0.75426391,104570.0,104560.0,0.67266318]
[1749069390271,0.75426391,104570.0,104560.0,0.62946318]
[1749069390504,0.75426391,104570.0,104560.0,0.45673957]
[1749069390754,0.75426391,104570.0,104560.0,0.04634442]
[1749069390964,0.77338847,104570.0,104560.0,0.04634442]
[1749069391178,0.77338838,104570.0,104560.0,0.18388442]
[1749069391396,0.76382605,104570.0,104560.0,0.18388442]
[1749069391627,0.76382615,104570.0,104560.0,0.02224442]
[1749069391861,0.75426391,104570.0,104560.0,0.18188442]
[1749069392078,0.75526391,104570.0,104560.0,0.18188442]
[1749069392746,0.75526391,104570.0,104560.0,0.20428442]
[1749069394102,0.75526391,104570.0,104560.0,0.45380442]
[1749069395510,0.76482605,104570.0,104560.0,0.24966442]
[1749069395718,0.76482605,104570.0,104560.0,0.41026442]
[1749069396173,0.76482605,104570.0,104560.0,0.20646442]
[1749069396391,0.76482605,104570.0,104560.0,0.45286442]
[1749069396392,0.001,104570.0,104560.0,0.45286442]
[1749069396610,0.75526391,104570.0,104560.0,0.54871872]
[1749069397094,0.001,104570.0,104560.0,0.54871872]
[1749069397351,0.001,104570.0,104560.0,0.84871872]
[1749069397352,0.75526391,104570.0,104560.0,0.84871872]
[1749069397748,0.75426391,104570.0,104560.0,0.84871872]
[1749069397962,0.75426391,104570.0,104560.0,0.85071872]
[1749069398179,0.75426391,104570.0,104560.0,0.64439872]
[1749069400225,0.75426391,104570.0,104560.0,0.60119872]
[1749069401564,0.75426391,104580.0,104570.0,0.0437]
[1749069401783,0.75426391,104580.0,104570.0,0.05572329]
[1749069402003,0.75426391,104580.0,104570.0,0.21632329]
[1749069403593,0.75526391,104580.0,104570.0,0.21632329]
[1749069404126,0.75526391,104580.0,104570.0,0.46580329]
[1749069411755,0.75526391,104580.0,104570.0,0.45378]
[1749069414326,0.75526391,104580.0,104570.0,0.29318]
[1749069414579,0.75526391,104580.0,104570.0,0.45374]
[1749069416519,0.75526391,104580.0,104570.0,0.29318]
[1749069416693,0.75526391,104580.0,104570.0,0.4537]
[1749069417957,0.001,104580.0,104570.0,0.4537]
[1749069418163,0.75526391,104580.0,104570.0,0.4537]
[1749069421787,0.75526391,104580.0,104570.0,0.4652305]
[1749069423009,0.75526391,104580.0,104570.0,0.4537]
[1749069423751,0.75526391,104580.0,104570.0,0.45366]
[1749069424825,0.001,104580.0,104570.0,0.45366]
[1749069425049,0.75526391,104580.0,104570.0,0.45366]
[1749069426587,0.001,104580.0,104570.0,0.45366]
[1749069427444,0.001,104580.0,104570.0,1.65831906]
[1749069427669,0.001,104580.0,104570.0,0.90405515]
[1749069428630,0.001,104580.0,104570.0,0.90505515]
[1749069429598,0.0008671,104590.0,104580.0,0.0433]
[1749069429829,0.0008671,104590.0,104580.0,0.14154444]
[1749069430153,0.75513101,104590.0,104580.0,0.14154444]
[1749069431216,0.75613101,104590.0,104580.0,0.14154444]
[1749069432654,0.0018671,104590.0,104580.0,0.14154444]
[1749069434285,0.0018671,104590.0,104580.0,0.66232529]
[1749069434507,0.0018671,104590.0,104580.0,0.65993515]
[1749069435155,0.0018671,104590.0,104580.0,0.99993515]
[1749069435483,0.0018671,104590.0,104580.0,1.00093515]
[1749069436240,0.0008671,104590.0,104580.0,1.00093515]
[1749069436469,0.0008671,104590.0,104580.0,1.00193515]
[1749069439075,0.0008671,104590.0,104580.0,0.79569515]
[1749069444095,0.0008671,104590.0,104580.0,1.04497515]
[1749069445627,0.75426391,104600.0,104590.0,0.0426]
[1749069445843,0.273884,104610.0,104590.0,0.30120428]
[1749069446079,0.75426391,104600.0,104590.0,0.30120428]
[1749069446310,0.75426391,104600.0,104590.0,0.2988143]
[1749069449089,0.75526391,104600.0,104590.0,0.2988143]
[1749069452547,0.75526391,104600.0,104590.0,0.3418543]
[1749069456179,0.001,104600.0,104590.0,0.3418543]
[1749069456404,0.75526391,104600.0,104590.0,0.3418543]
[1749069457052,0.75526391,104600.0,104590.0,0.3418143]
[1749069457708,0.001,104600.0,104590.0,0.3418143]
[1749069457924,0.001,104600.0,104590.0,0.2987743]
[1749069458628,0.001,104600.0,104590.0,0.31331515]
[1749069458841,0.001,104600.0,104590.0,0.65331515]
[1749069459736,0.001,104600.0,104590.0,1.40757906]
[1749069460394,0.229284,104610.0,104600.0,0.69774085]
[1749069460604,0.229284,104610.0,104600.0,0.79359515]
[1749069461861,0.229284,104610.0,104600.0,0.79459515]
[1749069462656,0.229284,104610.0,104600.0,0.79559515]
[1749069464152,0.04031338,104610.0,104600.0,1.04483515]
[1749069466438,0.04031338,104610.0,104600.0,0.83863515]
[1749069466659,0.04036153,104610.0,104600.0,0.83863515]
[1749069468113,0.04036153,104610.0,104600.0,0.79559515]
[1749069468338,0.04036153,104610.0,104600.0,0.95583515]
[1749069472699,0.79462544,104610.0,104600.0,0.95583515]
[1749069472909,0.79462544,104610.0,104600.0,0.91263515]
[1749069473120,0.79462544,104610.0,104600.0,0.7378543]
[1749069473328,0.79462544,104610.0,104600.0,0.8980943]
[1749069474051,0.79462544,104610.0,104600.0,1.1042943]
[1749069474266,0.79462544,104610.0,104600.0,1.1472543]
[1749069476859,0.04036153,104610.0,104600.0,0.9870143]
[1749069477098,0.04036153,104610.0,104600.0,1.1472143]
[1749069477782,0.04036153,104610.0,104600.0,0.9440543]
[1749069478004,0.06106153,104610.0,104600.0,1.1472143]
[1749069478227,0.08256153,104610.0,104600.0,1.1472143]
[1749069478449,0.83682544,104610.0,104600.0,1.1472143]
[1749069479396,0.83682544,104610.0,104600.0,0.9870143]
[1749069479619,0.83682544,104610.0,104600.0,1.1472143]
[1749069484624,0.83682544,104610.0,104600.0,0.75132]
[1749069487129,0.08256153,104610.0,104600.0,0.75132]
[1749069487349,0.83682544,104610.0,104600.0,0.75132]
[1749069487571,1.59108935,104610.0,104600.0,0.41132]
[1749069487795,1.59108935,104610.0,104600.0,0.25116]
[1749069488016,0.83682544,104610.0,104600.0,0.41132]
[1749069488249,0.08256153,104610.0,104600.0,0.41132]
[1749069488473,0.83682544,104610.0,104600.0,0.41132]
[1749069493419,0.81532544,104610.0,104600.0,0.41132]
[1749069494444,0.06106153,104610.0,104600.0,0.41132]
[1749069494655,0.81532544,104610.0,104600.0,0.41132]
[1749069495909,0.79462544,104610.0,104600.0,0.41132]
[1749069496857,0.79462544,104610.0,104600.0,0.41128]
[1749069499866,0.81612544,104610.0,104600.0,0.25116]
[1749069500082,0.81612544,104610.0,104600.0,0.41128]
[1749069501740,0.83822544,104610.0,104600.0,0.41128]
[1749069502505,1.59248935,104610.0,104600.0,0.2082]
[1749069502508,1.60204784,104610.0,104600.0,0.2082]
[1749069502738,1.60204784,104610.0,104600.0,0.4112]
[1749069503213,1.59042295,104610.0,104600.0,0.4112]
[1749069503487,0.08396153,104610.0,104600.0,0.4112]
[1749069503738,0.83719224,104610.0,104600.0,0.4112]
[1749069504944,1.59042295,104610.0,104600.0,0.4112]
[1749069505412,0.83719224,104610.0,104600.0,0.4112]
[1749069507024,1.59042295,104610.0,104600.0,0.4112]
[1749069510686,0.83719224,104610.0,104600.0,0.4112]
[1749069510913,0.79359224,104610.0,104600.0,0.4112]
[1749069514862,0.04036153,104610.0,104600.0,0.4112]
[1749069515083,0.81579224,104610.0,104600.0,0.4112]
[1749069515526,0.79359224,104610.0,104600.0,0.4112]
[1749069516910,0.04036153,104610.0,104600.0,0.4112]
[1749069517110,0.79359224,104610.0,104600.0,0.4581]
[1749069517317,0.79359224,104610.0,104600.0,0.5539543]
[1749069517971,0.04036153,104610.0,104600.0,0.5539543]
[1749069518601,0.79359224,104610.0,104600.0,0.5539543]
[1749069520382,0.04036153,104610.0,104600.0,0.5539543]
[1749069520592,0.04036153,104610.0,104600.0,0.56849515]
[1749069521869,0.79359224,104610.0,104600.0,0.56849515]
[1749069522077,0.04036153,104610.0,104600.0,0.56849515]
[1749069522718,0.79359224,104610.0,104600.0,0.56849515]
[1749069525282,0.04036153,104610.0,104600.0,0.56849515]
[1749069525485,0.79359224,104610.0,104600.0,0.56849515]
[1749069528199,0.79359224,104610.0,104600.0,0.56837515]
[1749069529223,0.04036153,104610.0,104600.0,0.56837515]
[1749069529426,0.79359224,104610.0,104600.0,0.56837515]
[1749069530145,0.79359224,104610.0,104600.0,0.90837515]
[1749069530990,0.04036153,104610.0,104600.0,1.66160586]
[1749069531148,0.04036153,104610.0,104600.0,1.45540586]
[1749069531370,0.04036153,104610.0,104600.0,0.70217515]
[1749069531824,0.04036153,104610.0,104600.0,1.44629674]
[1749069532153,0.04036153,104610.0,104600.0,0.69306603]
[1749069533244,0.79359224,104610.0,104600.0,0.69304759]
[1749069533472,0.04036153,104610.0,104600.0,0.69304759]
[1749069534163,0.04036153,104610.0,104600.0,0.94208759]
[1749069534814,0.79359224,104610.0,104600.0,0.94208759]
[1749069535288,0.79359224,104610.0,104600.0,0.90833515]
[1749069537857,0.04036153,104610.0,104600.0,0.70213515]
[1749069538552,0.79359224,104610.0,104600.0,0.70213515]
[1749069538765,0.04036153,104610.0,104600.0,0.70213515]
[1749069540072,0.04036153,104610.0,104600.0,0.65929515]
[1749069540717,0.04036153,104610.0,104600.0,0.49929515]
[1749069540935,0.04036153,104610.0,104600.0,0.65925515]
[1749069542657,0.79359224,104610.0,104600.0,0.65925515]
[1749069543331,0.04036153,104610.0,104600.0,0.65925515]
[1749069544205,0.04036153,104610.0,104600.0,0.90825515]
[1749069548303,0.04036153,104610.0,104600.0,0.70205515]
[1749069548517,0.04036153,104610.0,104600.0,1.41248586]
[1749069548732,0.04036153,104610.0,104600.0,0.65925515]
[1749069550209,0.04036153,104610.0,104600.0,0.65921515]
[1749069551085,0.04036153,104610.0,104600.0,0.49929515]
[1749069551297,0.04036153,104610.0,104600.0,0.91231515]
[1749069551298,0.79359224,104610.0,104600.0,0.91231515]
[1749069554176,0.79359224,104610.0,104600.0,1.16131515]
[1749069554939,0.79359224,104610.0,104600.0,1.1467743]
[1749069555404,0.79359224,104610.0,104600.0,0.9868543]
[1749069555634,0.79359224,104610.0,104600.0,1.1467743]
[1749069557444,0.79359224,104610.0,104600.0,0.9405743]
[1749069557898,0.79359224,104610.0,104600.0,0.7378543]
[1749069558119,0.79359224,104610.0,104600.0,0.9405743]
[1749069559229,0.5518183,104610.0,104600.0,0.9405743]
[1749069559476,0.5518183,104610.0,104600.0,0.8977743]
[1749069561362,0.5518183,104610.0,104600.0,0.9412743]
[1749069564165,0.5518183,104610.0,104600.0,1.1902343]
[1749069567042,0.75323071,104620.0,104600.0,1.94346501]
[1749069567257,0.75371214,104620.0,104600.0,1.94346501]
[1749069568096,0.75371214,104620.0,104600.0,1.94146501]
[1749069568307,0.75371214,104620.0,104600.0,1.94246501]
[1749069568515,0.75371214,104620.0,104600.0,1.94346501]
[1749069569368,0.75371214,104620.0,104600.0,1.97719642]
[1749069569812,0.75371214,104620.0,104600.0,1.22396571]
[1749069570028,0.77501214,104620.0,104600.0,1.22396571]
[1749069570453,0.77501214,104620.0,104600.0,1.18120571]
[1749069570664,0.79641214,104620.0,104610.0,0.04276]
[1749069571718,0.79641214,104620.0,104610.0,0.05349678]
[1749069571937,0.79741214,104620.0,104610.0,0.05349678]
[1749069574825,0.75471214,104620.0,104610.0,0.05349678]
[1749069576218,0.77571214,104620.0,104610.0,0.24896]
[1749069577398,0.00148143,104620.0,104610.0,0.24896]
[1749069577612,0.75471214,104620.0,104610.0,0.24896]
[1749069578459,0.75471214,104620.0,104610.0,0.28936]
[1749069578652,0.00148143,104620.0,104610.0,0.3852143]
[1749069578855,0.00148143,104620.0,104610.0,0.39579573]
[1749069579290,0.75471214,104620.0,104610.0,0.39579573]
[1749069581260,0.00148143,104620.0,104610.0,0.39579573]
[1749069582981,0.75471214,104620.0,104610.0,0.39579573]
[1749069586134,1.50794285,104620.0,104610.0,0.3448143]
[1749069586351,1.54904285,104620.0,104610.0,0.40876]
[1749069588534,1.54904285,104620.0,104610.0,0.24896]
[1749069588807,1.54904285,104620.0,104610.0,0.40876]
[1749069593074,1.54904285,104620.0,104610.0,0.40864]
[1749069593290,1.52844285,104620.0,104610.0,0.40864]
[1749069593699,1.54864285,104620.0,104610.0,0.40864]
[1749069596333,1.54864285,104620.0,104610.0,0.2062]
[1749069596561,1.54864285,104620.0,104610.0,0.24888]
[1749069596562,2.51215774,104620.0,104610.0,0.24888]
[1749069596774,2.53082024,104620.0,104610.0,0.40864]
[1749069597191,2.36832021,104620.0,104610.0,0.40864]
[1749069597410,2.36832021,104620.0,104610.0,0.2062]
[1749069597411,2.5594876,104620.0,104610.0,0.2062]
[1749069597625,2.64578423,104620.0,104610.0,0.40864]
[1749069599842,2.64578423,104620.0,104610.0,0.2062]
[1749069600066,2.64578423,104620.0,104610.0,0.40864]
[1749069600524,2.63668004,104620.0,104610.0,0.40864]
[1749069603554,2.6271221,104620.0,104610.0,0.24888]
[1749069603776,2.6271221,104620.0,104610.0,0.40864]
[1749069604517,2.61756389,104620.0,104610.0,0.40864]
[1749069604748,2.61756389,104620.0,104610.0,0.2062]
[1749069605000,2.66152293,104620.0,104610.0,0.40868]
[1749069605254,0.21034451,104590.0,104580.0,0.07594096]
[1749069605515,1.56012183,104590.0,104580.0,0.48462096]
[1749069605726,1.55056142,104590.0,104580.0,0.48462096]
[1749069606595,1.55156142,104590.0,104580.0,0.48462096]
[1749069607701,1.56191325,104590.0,104580.0,0.40868]
[1749069608658,1.50746142,104590.0,104580.0,0.40868]
[1749069609075,0.75423071,104590.0,104580.0,0.40868]
[1749069609716,0.76379103,104590.0,104580.0,0.40868]
[1749069609946,0.78389103,104590.0,104580.0,0.40868]
[1749069610359,0.77433071,104590.0,104580.0,0.40868]
[1749069610804,0.78389103,104590.0,104580.0,0.40868]
[1749069611234,0.79437874,104590.0,104580.0,0.40868]
[1749069611446,0.78481842,104590.0,104580.0,0.40868]
[1749069611661,1.54760945,104590.0,104580.0,0.40868]
[1749069612120,1.55717004,104590.0,104580.0,0.40868]
[1749069612339,0.79437874,104590.0,104580.0,0.40868]
[1749069614351,0.76471842,104590.0,104580.0,0.40868]
[1749069614590,0.77427874,104590.0,104580.0,0.40868]
[1749069615038,1.53706995,104590.0,104580.0,0.40868]
[1749069615251,0.04144803,104590.0,104580.0,0.40868]
[1749069615471,1.54790945,104590.0,104580.0,0.40868]
[1749069615710,0.77427874,104590.0,104580.0,0.40868]
[1749069616349,0.76471842,104590.0,104580.0,0.40868]
[1749069617423,0.75423071,104590.0,104580.0,0.40868]
[1749069618563,0.001,104590.0,104580.0,0.40868]
[1749069618783,0.75423071,104590.0,104580.0,0.40868]
[1749069620669,0.71623071,104590.0,104580.0,0.40868]
[1749069621365,0.4730084,104590.0,104580.0,0.40868]
[1749069623456,0.4730084,104590.0,104580.0,0.44948]
[1749069627750,0.86321377,104600.0,104580.0,0.44948]
[1749069627968,0.75323071,104590.0,104580.0,0.40676]
[1749069628204,0.75323071,104590.0,104580.0,0.44944]
[1749069629184,0.75323071,104590.0,104580.0,0.40864]
[1749069632154,0.75323071,104590.0,104580.0,0.42824]
[1749069632364,0.75323071,104590.0,104580.0,0.40864]
[1749069633597,0.10998315,104600.0,104580.0,0.40864]
[1749069633810,0.1190849,104600.0,104580.0,0.40864]
[1749069634037,0.10952486,104600.0,104580.0,0.40864]
[1749069634781,0.11908499,104600.0,104580.0,0.40864]
[1749069635221,0.00956032,104590.0,104580.0,0.40864]
[1749069635451,0.00956032,104590.0,104580.0,0.4086]
[1749069635666,0.05814255,104590.0,104580.0,0.24888]
[1749069635879,0.06042145,104590.0,104580.0,0.4086]
[1749069636101,0.06042091,104590.0,104580.0,0.4086]
[1749069636318,0.06998159,104590.0,104580.0,0.4086]
[1749069637195,0.06042091,104590.0,104580.0,0.4086]
[1749069637405,0.26120537,104590.0,104580.0,0.24888]
[1749069637619,0.27031084,104590.0,104580.0,0.4086]
[1749069637829,0.27031084,104590.0,104580.0,0.24888]
[1749069638047,0.27031084,104590.0,104580.0,0.4086]
[1749069639048,0.07908797,104590.0,104580.0,0.4086]
[1749069641133,0.05768724,104590.0,104580.0,0.4086]
[1749069642276,0.03778715,104590.0,104580.0,0.4086]
[1749069642989,0.06646515,104590.0,104580.0,0.4086]
[1749069645342,0.05735968,104590.0,104580.0,0.4086]
[1749069645576,0.05735959,104590.0,104580.0,0.4086]
[1749069646067,0.39623284,104590.0,104580.0,0.4086]
[1749069647283,0.40579398,104590.0,104580.0,0.4086]
[1749069647523,0.18588788,104590.0,104580.0,0.2062]
[1749069647752,0.18588788,104590.0,104580.0,0.4086]
[1749069647753,0.18635357,104590.0,104580.0,0.4086]
[1749069647990,0.19591407,104590.0,104580.0,0.4086]
[1749069648761,0.1648533,104590.0,104580.0,0.4086]
[1749069649020,0.17441407,104590.0,104580.0,0.4086]
[1749069649548,0.15529271,104590.0,104580.0,0.4086]
[1749069650488,0.15529271,104590.0,104580.0,0.40856]
[1749069650489,0.15489271,104590.0,104580.0,0.40856]
[1749069650727,0.16445321,104590.0,104580.0,0.40856]
[1749069651232,0.17401389,104590.0,104580.0,0.40856]